fUST/lending_fUST_20260529
["ID","MTS","AMOUNT","RATE_DAILY","PERIOD"]
[423278601,1780017033000,-157.77350415,8.219e-05,2]
[423278599,1780017033000,-500.0,8.219e-05,2]
[423278596,1780017033000,-500.0,8.219e-05,2]
[423278607,1780017033000,-500.0,8.219e-05,2]
[423278594,1780017033000,-500.0,8.219e-05,2]
[423278606,1780017033000,-500.0,8.219e-05,2]
[423278604,1780017033000,-500.0,8.219e-05,2]
[423278605,1780017033000,-500.0,8.219e-05,2]
[423278593,1780017033000,-500.0,8.219e-05,2]
[423278588,1780017033000,-500.0,8.219e-05,2]
[423278591,1780017033000,-500.0,8.219e-05,2]
[423278590,1780017033000,-500.0,8.219e-05,2]
[423278603,1780017033000,-500.0,8.219e-05,2]
[423278633,1780017039000,-500.0,8.219e-05,2]
[423278632,1780017039000,-335.9710556,8.219e-05,2]
[423278634,1780017039000,-500.0,8.219e-05,2]
[423278635,1780017039000,-500.0,8.219e-05,2]
[423278636,1780017039000,-302.95576371,8.219e-05,2]
[423278638,1780017039000,-82.31337448,8.219e-05,2]
[423278637,1780017039000,-500.0,8.219e-05,2]
[423278774,1780017041000,-268.29791423,8.219e-05,2]
[423278772,1780017041000,-91.69484261,8.219e-05,2]
[423278741,1780017041000,-325.99178291,8.219e-05,2]
[423278815,1780017044000,-500.0,8.219e-05,2]
[423278816,1780017044000,-500.0,8.219e-05,2]
[423278811,1780017044000,-500.0,8.219e-05,2]
[423278813,1780017044000,-500.0,8.219e-05,2]
[423278814,1780017044000,-500.0,8.219e-05,2]
[423278820,1780017044000,-500.0,8.219e-05,2]
[423278819,1780017044000,-500.0,8.219e-05,2]
[423278812,1780017044000,-500.0,8.219e-05,2]
[423278829,1780017044000,-500.0,8.219e-05,2]
[423278831,1780017044000,-500.0,8.219e-05,2]
[423278818,1780017044000,-500.0,8.219e-05,2]
[423278817,1780017044000,-500.0,8.219e-05,2]
[423278809,1780017044000,-500.0,8.219e-05,2]
[423278810,1780017044000,-500.0,8.219e-05,2]
[423278822,1780017044000,-500.0,8.219e-05,2]
[423278806,1780017044000,-500.0,8.219e-05,2]
[423278807,1780017044000,-500.0,8.219e-05,2]
[423278805,1780017044000,-500.0,8.219e-05,2]
[423278804,1780017044000,-500.0,8.219e-05,2]
[423278801,1780017044000,-500.0,8.219e-05,2]
[423278803,1780017044000,-500.0,8.219e-05,2]
[423278802,1780017044000,-500.0,8.219e-05,2]
[423278799,1780017044000,-231.70208577,8.219e-05,2]
[423278800,1780017044000,-500.0,8.219e-05,2]
[423278808,1780017044000,-500.0,8.219e-05,2]
[423278830,1780017044000,-500.0,8.219e-05,2]
[423278821,1780017044000,-500.0,8.219e-05,2]
[423278824,1780017044000,-500.0,8.219e-05,2]
[423278855,1780017044000,-500.0,8.219e-05,2]
[423278856,1780017044000,-281.25584892,8.219e-05,2]
[423278852,1780017044000,-500.0,8.219e-05,2]
[423278853,1780017044000,-360.83181426,8.219e-05,2]
[423278854,1780017044000,-139.16818574,8.219e-05,2]
[423278851,1780017044000,-176.55136574,8.219e-05,2]
[423278847,1780017044000,-291.66767061,8.219e-05,2]
[423278828,1780017044000,-500.0,8.219e-05,2]
[423278850,1780017044000,-323.44863426,8.219e-05,2]
[423278846,1780017044000,-208.33232939,8.219e-05,2]
[423278842,1780017044000,-500.0,8.219e-05,2]
[423278839,1780017044000,-500.0,8.219e-05,2]
[423278841,1780017044000,-500.0,8.219e-05,2]
[423278849,1780017044000,-500.0,8.219e-05,2]
[423278832,1780017044000,-500.0,8.219e-05,2]
[423278835,1780017044000,-500.0,8.219e-05,2]
[423278837,1780017044000,-504.35,8.219e-05,2]
[423278836,1780017044000,-500.0,8.219e-05,2]
[423278834,1780017044000,-473.54217603,8.219e-05,2]
[423278845,1780017044000,-173.62822984,8.219e-05,2]
[423278844,1780017044000,-326.37177016,8.219e-05,2]
[423278833,1780017044000,-500.0,8.219e-05,2]
[423278826,1780017044000,-500.0,8.219e-05,2]
[423278823,1780017044000,-500.0,8.219e-05,2]
[423278827,1780017044000,-500.0,8.219e-05,2]
[423278825,1780017044000,-500.0,8.219e-05,2]
[423278838,1780017044000,-194.05068141,8.219e-05,2]
[423278858,1780017047000,-218.74415108,8.219e-05,2]
[423278859,1780017047000,-500.0,8.219e-05,2]
[423278863,1780017047000,-62.1365649,8.219e-05,2]
[423278862,1780017047000,-500.0,8.219e-05,2]
[423278861,1780017047000,-496.88115571,8.219e-05,2]
[423278860,1780017047000,-500.0,8.219e-05,2]
[423278865,1780017048000,-500.0,8.219e-05,2]
[423278867,1780017048000,-186.63723574,8.219e-05,2]
[423278868,1780017048000,-9.71020006,8.219e-05,2]
[423278866,1780017048000,-500.0,8.219e-05,2]
[423278874,1780017048000,-500.0,8.219e-05,2]
[423278864,1780017048000,-437.8634351,8.219e-05,2]
[423278872,1780017048000,-500.0,8.219e-05,2]
[423278870,1780017048000,-490.28979994,8.219e-05,2]
[423278880,1780017048000,-500.0,8.219e-05,2]
[423278876,1780017048000,-500.0,8.219e-05,2]
[423278877,1780017048000,-500.0,8.219e-05,2]
[423278875,1780017048000,-500.0,8.219e-05,2]
[423278879,1780017048000,-265.97,8.219e-05,2]
[423278883,1780017048000,-175.17812515,8.219e-05,2]
[423278881,1780017048000,-500.0,8.219e-05,2]
[423278882,1780017048000,-500.0,8.219e-05,2]
[423278878,1780017048000,-500.0,8.219e-05,2]
[423278895,1780017283000,1136.0,0.00020249,120]
[423278899,1780017413000,500.0,0.00020547,120]
[423278900,1780017428000,501.0,0.00020547,120]
[423278923,1780018213000,172.03622726,0.00020247,120]
[423278985,1780018232000,-300.0,8.218e-05,2]
[423278983,1780018232000,-177.37967589,8.034e-05,2]
[423278987,1780018232000,-105.13822411,8.218e-05,2]
[423278981,1780018232000,-5000.0,8e-05,2]
[423279168,1780018238000,-5000.0,8.136e-05,2]
[423279170,1780018238000,-139.86177589,8.218e-05,2]
[423279180,1780018238000,-500.0,8.219e-05,2]
[423279184,1780018238000,-500.0,8.219e-05,2]
[423279182,1780018238000,-500.0,8.219e-05,2]
[423279199,1780018238000,-421.04177589,8.219e-05,2]
[423279174,1780018238000,-435.09,8.219e-05,2]
[423279178,1780018238000,-249.81,8.219e-05,2]
[423279186,1780018238000,-78.95822411,8.219e-05,2]
[423279176,1780018238000,-554.28,8.219e-05,2]
[423279201,1780018238000,-283.17824611,8.219e-05,2]
[423279172,1780018238000,-1200.0,8.218e-05,2]
[423279400,1780018243000,-216.82175389,8.219e-05,2]
[423279406,1780018243000,-500.0,8.219e-05,2]
[423279403,1780018243000,-283.17824611,8.219e-05,2]
[423279408,1780018243000,-4583.481,8.219e-05,2]
[423279404,1780018243000,-130.17175389,8.219e-05,2]
[423279407,1780018243000,-500.0,8.219e-05,2]
[423279405,1780018243000,-500.0,8.219e-05,2]
[423279410,1780018243000,-4583.481,8.219e-05,2]
[423279412,1780018243000,-4583.481,8.219e-05,2]
[423279413,1780018243000,-2688.08015015,8.219e-05,2]
[423279411,1780018243000,-4583.481,8.219e-05,2]
[423279414,1780018243000,-287.41003066,8.219e-05,2]
[423279409,1780018243000,-4583.481,8.219e-05,2]
[423279437,1780018246000,-500.0,8.219e-05,2]
[423279435,1780018246000,-500.0,8.219e-05,2]
[423279443,1780018246000,-500.0,8.219e-05,2]
[423279456,1780018246000,-166.64758656,8.219e-05,2]
[423279447,1780018246000,-139.34692115,8.219e-05,2]
[423279442,1780018246000,-500.0,8.219e-05,2]
[423279454,1780018246000,-500.0,8.219e-05,2]
[423279444,1780018246000,-500.0,8.219e-05,2]
[423279446,1780018246000,-360.65307885,8.219e-05,2]
[423279458,1780018246000,-500.0,8.219e-05,2]
[423279433,1780018246000,-228.13382322,8.219e-05,2]
[423279438,1780018246000,-500.0,8.219e-05,2]
[423279436,1780018246000,-500.0,8.219e-05,2]
[423279431,1780018246000,-500.0,8.219e-05,2]
[423279432,1780018246000,-1000.0,8.219e-05,2]
[423279441,1780018246000,-500.0,8.219e-05,2]
[423279434,1780018246000,-500.0,8.219e-05,2]
[423279429,1780018246000,-324.82187485,8.219e-05,2]
[423279440,1780018246000,-500.0,8.219e-05,2]
[423279430,1780018246000,-280.70219472,8.219e-05,2]
[423279428,1780018246000,-4583.481,8.219e-05,2]
[423279427,1780018246000,-4583.481,8.219e-05,2]
[423279426,1780018246000,-1607.99081919,8.219e-05,2]
[423279439,1780018246000,-500.0,8.219e-05,2]
[423279445,1780018246000,-500.0,8.219e-05,2]
[423279460,1780018246000,-500.0,8.219e-05,2]
[423279452,1780018246000,-500.0,8.219e-05,2]
[423279448,1780018246000,-500.0,8.219e-05,2]
[423279485,1780018246000,-62.22937951,8.219e-05,2]
[423279483,1780018246000,-500.0,8.219e-05,2]
[423279482,1780018246000,-500.0,8.219e-05,2]
[423279484,1780018246000,-500.0,8.219e-05,2]
[423279480,1780018246000,-500.0,8.219e-05,2]
[423279478,1780018246000,-500.0,8.219e-05,2]
[423279479,1780018246000,-500.0,8.219e-05,2]
[423279474,1780018246000,-500.0,8.219e-05,2]
[423279476,1780018246000,-500.0,8.219e-05,2]
[423279475,1780018246000,-500.0,8.219e-05,2]
[423279472,1780018246000,-500.0,8.219e-05,2]
[423279477,1780018246000,-500.0,8.219e-05,2]
[423279470,1780018246000,-500.0,8.219e-05,2]
[423279450,1780018246000,-500.0,8.219e-05,2]
[423279466,1780018246000,-500.0,8.219e-05,2]
[423279473,1780018246000,-500.0,8.219e-05,2]
[423279465,1780018246000,-500.0,8.219e-05,2]
[423279463,1780018246000,-28.6361524,8.219e-05,2]
[423279464,1780018246000,-471.3638476,8.219e-05,2]
[423279462,1780018246000,-500.0,8.219e-05,2]
[423279469,1780018246000,-586.28,8.219e-05,2]
[423279468,1780018246000,-500.0,8.219e-05,2]
[423279471,1780018246000,-500.0,8.219e-05,2]
[423279481,1780018246000,-500.0,8.219e-05,2]
[423279467,1780018246000,-500.0,8.219e-05,2]
[423279491,1780018292000,-4185.84844777,8.137e-05,2]
[423279502,1780018467000,188.0,0.0002,120]
[423279505,1780018533000,1079.0,0.00020249,120]
[423279506,1780018547000,169.0,0.00018653,120]
[423279546,1780019192000,-1057.3398615,8.21e-05,2]
[423279543,1780019192000,-5000.0,8e-05,2]
[423279545,1780019192000,-219.4422454,8.21e-05,2]
[423279544,1780019192000,-181.82792721,8.026e-05,2]
[423279548,1780019192000,-497.5773093,8.219e-05,2]
[423279547,1780019192000,-263.0,8.218e-05,2]
[423279550,1780019192000,-503.07097008,8.219e-05,2]
[423279549,1780019192000,-219.40284924,8.219e-05,2]
[423279554,1780019192000,-500.91254864,8.219e-05,2]
[423279553,1780019192000,-502.33274726,8.219e-05,2]
[423279552,1780019192000,-500.75940397,8.219e-05,2]
[423279555,1780019192000,-50.02650344,8.219e-05,2]
[423279551,1780019192000,-504.30763396,8.219e-05,2]
[423279556,1780019201000,-5000.0,8.137e-05,2]
[423279558,1780019201000,-500.71219344,8.219e-05,2]
[423279557,1780019201000,-450.63570317,8.219e-05,2]
[423279559,1780019201000,-1044.6825784,8.219e-05,2]
[423279561,1780019201000,-640.59302634,8.219e-05,2]
[423279560,1780019201000,-504.85216209,8.219e-05,2]
[423279564,1780019201000,-500.0,8.219e-05,2]
[423279562,1780019201000,-502.47902735,8.219e-05,2]
[423279563,1780019201000,-500.5509657,8.219e-05,2]
[423279565,1780019201000,-355.49434351,8.219e-05,2]
[423279570,1780019210000,-147.14284348,8.219e-05,2]
[423279571,1780019210000,-500.0,8.219e-05,2]
[423279572,1780019210000,-273.74137482,8.219e-05,2]
[423279573,1780019210000,-502.38427546,8.219e-05,2]
[423279574,1780019210000,-501.49426052,8.219e-05,2]
[423279577,1780019210000,-501.84873802,8.219e-05,2]
[423279575,1780019210000,-500.0,8.219e-05,2]
[423279580,1780019210000,-413.19926284,8.219e-05,2]
[423279576,1780019210000,-556.74195367,8.219e-05,2]
[423279579,1780019210000,-503.68063091,8.219e-05,2]
[423279581,1780019210000,-501.04042135,8.219e-05,2]
[423279582,1780019210000,-501.5590396,8.219e-05,2]
[423279583,1780019210000,-500.0,8.219e-05,2]
[423279585,1780019210000,-500.0,8.219e-05,2]
[423279584,1780019210000,-500.0,8.219e-05,2]
[423279578,1780019210000,-501.81188514,8.219e-05,2]
[423279586,1780019211000,-500.0,8.219e-05,2]
[423279587,1780019211000,-500.0,8.219e-05,2]
[423279589,1780019211000,-605.49234066,8.219e-05,2]
[423279590,1780019211000,-489.86297353,8.219e-05,2]
[423279588,1780019211000,-500.0,8.219e-05,2]
[423279595,1780019222000,-500.45715265,8.219e-05,2]
[423279592,1780019222000,-10.13702647,8.219e-05,2]
[423279594,1780019222000,-500.0,8.219e-05,2]
[423279593,1780019222000,-500.0,8.219e-05,2]
[423279596,1780019222000,-500.0,8.219e-05,2]
[423279591,1780019222000,-5000.0,8.137e-05,2]
[423279598,1780019222000,-500.0,8.219e-05,2]
[423279603,1780019222000,-334.86027232,8.219e-05,2]
[423279602,1780019222000,-154.54554856,8.219e-05,2]
[423279597,1780019222000,-500.0,8.219e-05,2]
[423279600,1780019222000,-500.0,8.219e-05,2]
[423279599,1780019222000,-500.0,8.219e-05,2]
[423279601,1780019222000,-500.0,8.219e-05,2]
[423279604,1780019232000,-165.13972768,8.219e-05,2]
[423279605,1780019232000,-500.0,8.219e-05,2]
[423279607,1780019232000,-500.0,8.219e-05,2]
[423279609,1780019232000,-500.0,8.219e-05,2]
[423279611,1780019232000,-633.35618937,8.219e-05,2]
[423279610,1780019232000,-500.0,8.219e-05,2]
[423279612,1780019232000,-500.0,8.219e-05,2]
[423279615,1780019232000,-500.0,8.219e-05,2]
[423279614,1780019232000,-500.0,8.219e-05,2]
[423279606,1780019232000,-500.0,8.219e-05,2]
[423279616,1780019232000,-500.0,8.219e-05,2]
[423279613,1780019232000,-334.88638918,8.219e-05,2]
[423279624,1780019232000,-351.64771546,8.219e-05,2]
[423279623,1780019232000,-500.0,8.219e-05,2]
[423279621,1780019232000,-500.0,8.219e-05,2]
[423279608,1780019232000,-500.0,8.219e-05,2]
[423279620,1780019232000,-500.0,8.219e-05,2]
[423279619,1780019232000,-500.0,8.219e-05,2]
[423279618,1780019232000,-514.62319703,8.219e-05,2]
[423279617,1780019232000,-500.34678128,8.219e-05,2]
[423279622,1780019232000,-500.0,8.219e-05,2]
[423279671,1780019432000,-572.91685182,8.137e-05,2]
[423279905,1780019434000,824.0,0.00020515,120]
[423280157,1780019438000,-500.57039016,8.219e-05,2]
[423280156,1780019438000,-200.92082534,8.219e-05,2]
[423280153,1780019438000,-501.39666687,8.219e-05,2]
[423280151,1780019438000,-500.0,8.219e-05,2]
[423280152,1780019438000,-631.60823229,8.219e-05,2]
[423280149,1780019438000,-500.0,8.219e-05,2]
[423280154,1780019438000,-468.48921082,8.219e-05,2]
[423280148,1780019438000,-500.0,8.219e-05,2]
[423280146,1780019438000,-401.10392263,8.219e-05,2]
[423280150,1780019438000,-628.84257735,8.219e-05,2]
[423280147,1780019438000,-500.0,8.219e-05,2]
[423280145,1780019438000,-500.0,8.219e-05,2]
[423280143,1780019438000,-500.0,8.219e-05,2]
[423280144,1780019438000,-500.0,8.219e-05,2]
[423280142,1780019438000,-148.35228454,8.219e-05,2]
[423280155,1780019438000,-402.9835792,8.219e-05,2]
[423280141,1780019438000,-5000.0,8e-05,2]
[423280158,1780019438000,-502.14246241,8.219e-05,2]
[423280161,1780019438000,-500.0,8.219e-05,2]
[423280160,1780019438000,-500.0,8.219e-05,2]
[423280175,1780019438000,-373.12979455,8.219e-05,2]
[423280174,1780019438000,-500.0,8.219e-05,2]
[423280170,1780019438000,-241.31477747,8.219e-05,2]
[423280173,1780019438000,-290.36899123,8.219e-05,2]
[423280171,1780019438000,-500.0,8.219e-05,2]
[423280168,1780019438000,-530.22951025,8.219e-05,2]
[423280172,1780019438000,-500.0,8.219e-05,2]
[423280167,1780019438000,-500.0,8.219e-05,2]
[423280163,1780019438000,-500.0,8.219e-05,2]
[423280166,1780019438000,-562.38758352,8.219e-05,2]
[423280165,1780019438000,-500.0,8.219e-05,2]
[423280169,1780019438000,-258.68522253,8.219e-05,2]
[423280159,1780019438000,-500.0,8.219e-05,2]
[423280164,1780019438000,-500.0,8.219e-05,2]
[423280162,1780019438000,-500.0,8.219e-05,2]
[423280328,1780019441000,-300.0,8.382e-05,2]
[423280337,1780019441000,-300.0,8.382e-05,2]
[423280339,1780019441000,-300.0,8.382e-05,2]
[423280341,1780019441000,-300.0,8.382e-05,2]
[423280351,1780019441000,-27.87489256,8.493e-05,2]
[423280345,1780019441000,-597.02865102,8.382e-05,2]
[423280355,1780019441000,-466.80992447,8.493e-05,2]
[423280343,1780019441000,-2.97134898,8.382e-05,2]
[423280357,1780019441000,-500.39895958,8.493e-05,2]
[423280347,1780019441000,-501.88165958,8.493e-05,2]
[423280324,1780019441000,-300.0,8.382e-05,2]
[423280354,1780019441000,-500.0,8.219e-05,2]
[423280320,1780019441000,-300.0,8.382e-05,2]
[423280317,1780019441000,-300.0,8.382e-05,2]
[423280322,1780019441000,-300.0,8.382e-05,2]
[423280334,1780019441000,-300.0,8.382e-05,2]
[423280331,1780019441000,-300.0,8.382e-05,2]
[423280330,1780019441000,-300.0,8.382e-05,2]
[423280318,1780019441000,-300.0,8.382e-05,2]
[423280326,1780019441000,-300.0,8.382e-05,2]
[423280315,1780019441000,-300.0,8.382e-05,2]
[423280312,1780019441000,-500.0,8.219e-05,2]
[423280349,1780019441000,-504.09068968,8.493e-05,2]
[423280311,1780019441000,-500.0,8.219e-05,2]
[423280309,1780019441000,-500.0,8.219e-05,2]
[423280307,1780019441000,-126.87020545,8.219e-05,2]
[423280335,1780019441000,-300.0,8.382e-05,2]
[423280361,1780019441000,-500.83110595,8.493e-05,2]
[423280410,1780019441000,-500.0,8.493e-05,2]
[423280367,1780019441000,-442.37906573,8.493e-05,2]
[423280376,1780019441000,-504.03995393,8.493e-05,2]
[423280416,1780019441000,-380.64865916,8.493e-05,2]
[423280414,1780019441000,-500.84801447,8.493e-05,2]
[423280412,1780019441000,-501.40442438,8.493e-05,2]
[423280406,1780019441000,-503.85945999,8.493e-05,2]
[423280408,1780019441000,-500.0,8.493e-05,2]
[423280398,1780019441000,-500.0,8.493e-05,2]
[423280402,1780019441000,-648.78594864,8.493e-05,2]
[423280396,1780019441000,-500.0,8.493e-05,2]
[423280400,1780019441000,-501.15622967,8.493e-05,2]
[423280394,1780019441000,-235.95405954,8.493e-05,2]
[423280404,1780019441000,-500.0,8.493e-05,2]
[423280392,1780019441000,-588.66053403,8.493e-05,2]
[423280387,1780019441000,-500.0,8.493e-05,2]
[423280389,1780019441000,-500.83572929,8.493e-05,2]
[423280391,1780019441000,-401.10028044,8.493e-05,2]
[423280379,1780019441000,-502.34966027,8.493e-05,2]
[423280369,1780019441000,-500.84952906,8.493e-05,2]
[423280377,1780019441000,-500.0,8.493e-05,2]
[423280370,1780019441000,-502.77301779,8.493e-05,2]
[423280363,1780019441000,-502.21765495,8.493e-05,2]
[423280381,1780019441000,-527.91561728,8.493e-05,2]
[423280372,1780019441000,-296.24819791,8.493e-05,2]
[423280385,1780019441000,-501.45062841,8.493e-05,2]
[423280383,1780019441000,-500.0,8.493e-05,2]
[423280374,1780019441000,-501.32962055,8.493e-05,2]
[423280365,1780019441000,-502.69553445,8.493e-05,2]
[423280653,1780019443000,-500.0,8.493e-05,2]
[423280632,1780019443000,-500.0,8.493e-05,2]
[423280649,1780019443000,-500.0,8.493e-05,2]
[423280658,1780019443000,-479.49476709,8.493e-05,2]
[423280636,1780019443000,-500.0,8.493e-05,2]
[423280642,1780019443000,-507.37644967,8.493e-05,2]
[423280626,1780019443000,-120.17715405,8.493e-05,2]
[423280638,1780019443000,-500.0,8.493e-05,2]
[423280634,1780019443000,-500.0,8.493e-05,2]
[423280628,1780019443000,-501.572765,8.493e-05,2]
[423280630,1780019443000,-501.98213452,8.493e-05,2]
[423280647,1780019443000,-221.10976357,8.493e-05,2]
[423280640,1780019443000,-500.0,8.493e-05,2]
[423280661,1780019443000,-20.50523291,8.493e-05,2]
[423280681,1780019443000,-6.1049331,8.767e-05,2]
[423280643,1780019443000,-461.45035327,8.493e-05,2]
[423280676,1780019443000,-258.75399875,8.493e-05,2]
[423280678,1780019443000,-582.0307034,8.767e-05,2]
[423280674,1780019443000,-244.67175742,8.493e-05,2]
[423280645,1780019443000,-139.13219056,8.493e-05,2]
[423280668,1780019443000,-500.0,8.493e-05,2]
[423280672,1780019443000,-500.0,8.493e-05,2]
[423280670,1780019443000,-511.87048417,8.493e-05,2]
[423280666,1780019443000,-500.0,8.493e-05,2]
[423280664,1780019443000,-500.0,8.493e-05,2]
[423280662,1780019443000,-500.0,8.493e-05,2]
[423280657,1780019443000,-500.0,8.493e-05,2]
[423280655,1780019443000,-500.0,8.493e-05,2]
[423280651,1780019443000,-500.0,8.493e-05,2]
[423280680,1780019443000,-510.50704494,8.767e-05,2]
[423280989,1780019446000,-500.81662809,8.767e-05,2]
[423280991,1780019446000,-500.7545263,8.767e-05,2]
[423280983,1780019446000,-409.66407483,8.219e-05,2]
[423280993,1780019446000,-503.06133583,8.767e-05,2]
[423280995,1780019446000,-500.0,8.767e-05,2]
[423280997,1780019446000,-476.08317558,8.767e-05,2]
[423280999,1780019446000,-188.52916089,8.767e-05,2]
[423280985,1780019446000,-501.74830656,8.767e-05,2]
[423281007,1780019446000,-40.64691677,8.767e-05,2]
[423281001,1780019446000,-500.0,8.767e-05,2]
[423281003,1780019446000,-501.14806586,8.767e-05,2]
[423281005,1780019446000,-406.19780929,8.767e-05,2]
[423281010,1780019446000,-418.0120391,8.767e-05,2]
[423281012,1780019446000,-530.35724627,8.767e-05,2]
[423281014,1780019446000,-556.89479835,8.767e-05,2]
[423281016,1780019446000,-188.07903798,8.767e-05,2]
[423280987,1780019446000,-500.0,8.767e-05,2]
[423281502,1780019710000,1025.0,0.00020244,120]
[423281504,1780019739000,577.0,0.00020548,120]
[423281539,1780020440000,485.0,0.00020547,120]
[423281592,1780020632000,-255.28157475,8e-05,2]
[423281589,1780020632000,-576.63314209,8e-05,2]
[423281586,1780020632000,-532.80669207,8e-05,2]
[423281604,1780020638000,-756.81431939,8e-05,2]
[423281612,1780020640000,-1219.91665635,8e-05,2]
[423281613,1780020640000,-1658.54761535,8e-05,2]
[423281614,1780020640000,-178.19136867,8.027e-05,2]
[423281617,1780020640000,-300.0,8.382e-05,2]
[423281615,1780020640000,-596.82880785,8.219e-05,2]
[423281616,1780020640000,-152.82,8.219e-05,2]
[423281619,1780020640000,-300.0,8.382e-05,2]
[423281618,1780020640000,-300.0,8.382e-05,2]
[423281629,1780020641000,-300.0,8.382e-05,2]
[423281620,1780020641000,-300.0,8.382e-05,2]
[423281630,1780020641000,-300.0,8.382e-05,2]
[423281621,1780020641000,-300.0,8.382e-05,2]
[423281623,1780020641000,-300.0,8.382e-05,2]
[423281624,1780020641000,-300.0,8.382e-05,2]
[423281622,1780020641000,-300.0,8.382e-05,2]
[423281627,1780020641000,-300.0,8.382e-05,2]
[423281632,1780020641000,-509.02466044,8.492e-05,2]
[423281625,1780020641000,-300.0,8.382e-05,2]
[423281626,1780020641000,-300.0,8.382e-05,2]
[423281631,1780020641000,-300.0,8.382e-05,2]
[423281633,1780020641000,-500.0,8.492e-05,2]
[423281637,1780020641000,-94.43243126,8.492e-05,2]
[423281635,1780020641000,-355.5878547,8.492e-05,2]
[423281634,1780020641000,-418.0120391,8.492e-05,2]
[423281636,1780020641000,-201.30694365,8.492e-05,2]
[423281628,1780020641000,-300.0,8.382e-05,2]
[423281655,1780020646000,-500.0,8.492e-05,2]
[423281654,1780020646000,-500.0,8.492e-05,2]
[423281652,1780020646000,-500.0,8.492e-05,2]
[423281661,1780020646000,-500.0,8.766e-05,2]
[423281662,1780020646000,-533.24617311,8.766e-05,2]
[423281651,1780020646000,-500.0,8.492e-05,2]
[423281644,1780020646000,-500.98768426,8.492e-05,2]
[423281650,1780020646000,-500.0,8.492e-05,2]
[423281647,1780020646000,-500.0,8.492e-05,2]
[423281645,1780020646000,-166.74859606,8.492e-05,2]
[423281646,1780020646000,-500.0,8.492e-05,2]
[423281648,1780020646000,-500.0,8.492e-05,2]
[423281643,1780020646000,-406.98525146,8.492e-05,2]
[423281649,1780020646000,-500.0,8.492e-05,2]
[423281658,1780020646000,-219.4422454,8.577e-05,2]
[423281672,1780020646000,-500.0,9.04e-05,2]
[423281653,1780020646000,-500.0,8.492e-05,2]
[423281670,1780020646000,-150.09868537,8.766e-05,2]
[423281671,1780020646000,-600.0,8.941e-05,2]
[423281673,1780020646000,-542.25622689,9.04e-05,2]
[423281667,1780020646000,-497.08052931,8.766e-05,2]
[423281668,1780020646000,-500.0,8.766e-05,2]
[423281669,1780020646000,-500.0,8.766e-05,2]
[423281659,1780020646000,-528.6699307,8.577e-05,2]
[423281666,1780020646000,-317.45252895,8.766e-05,2]
[423281660,1780020646000,-500.0,8.766e-05,2]
[423281656,1780020646000,-500.0,8.492e-05,2]
[423281665,1780020646000,-500.0,8.766e-05,2]
[423281664,1780020646000,-417.03520795,8.766e-05,2]
[423281657,1780020646000,-512.89309041,8.492e-05,2]
[423281663,1780020646000,-201.57249391,8.766e-05,2]
[423281674,1780020647000,-500.0,9.04e-05,2]
[423281675,1780020647000,-223.90666873,9.04e-05,2]
[423281676,1780020647000,-555.52664919,9.04e-05,2]
[423281678,1780020647000,-500.0,9.314e-05,2]
[423281677,1780020647000,-500.0,9.314e-05,2]
[423281679,1780020647000,-2121.98857,9.5e-05,2]
[423281688,1780020647000,-500.0,0.0001041,2]
[423281684,1780020647000,-152.04386104,9.862e-05,2]
[423281680,1780020647000,-500.0,9.588e-05,2]
[423281683,1780020647000,-175.34,9.862e-05,2]
[423281685,1780020647000,-347.95613896,9.862e-05,2]
[423281681,1780020647000,-500.0,9.588e-05,2]
[423281686,1780020647000,-210.26581503,0.00010027,2]
[423281682,1780020647000,-720.0,9.835e-05,2]
[423281687,1780020647000,-500.0,0.00010136,2]
[423281691,1780020647000,-401.81157609,0.000108,2]
[423281703,1780020647000,-500.0,0.00011771,2]
[423281702,1780020647000,-500.0,0.00011771,2]
[423281701,1780020647000,-500.0,0.00011771,2]
[423281705,1780020647000,-288.76611891,0.00011771,2]
[423281704,1780020647000,-500.0,0.00011771,2]
[423281690,1780020647000,-543.85567828,0.00010684,2]
[423281697,1780020647000,-345.07933422,0.00011771,2]
[423281699,1780020647000,-500.0,0.00011771,2]
[423281695,1780020647000,-373.0,0.0001177,2]
[423281694,1780020647000,-864.0,0.00010819,2]